[Event "Late-Titled-Tuesday-Blitz-October-17-2023"]
[Site "Chess.com"]
[Date "2023.10.17"]
[Round "6"]
[White "TanitoluwaAps116"]
[Black "SereneSalmon"]
[Result "1-0"]
[WhiteElo "2626"]
[BlackElo "2441"]
[TimeControl "180+1"]
[EndTime "15:03:45 PDT"]
[Termination "TanitoluwaAps116 won by resignation"]

1. e4 {[%clk 0:02:57.8]} 1... e6 {[%clk 0:03:00.4]} 2. d4 {[%clk 0:02:54.6]}
2... d5 {[%clk 0:03:00.6]} 3. exd5 {[%clk 0:02:54.2]} 3... exd5 {[%clk
0:03:01.5]} 4. Nf3 {[%clk 0:02:53.8]} 4... Nf6 {[%clk 0:02:59.3]} 5. Bd3 {[%clk
0:02:53.4]} 5... Bd6 {[%clk 0:02:59.8]} 6. O-O {[%clk 0:02:53.3]} 6... O-O
{[%clk 0:02:59.7]} 7. h3 {[%clk 0:02:53.9]} 7... h6 {[%clk 0:02:58.2]} 8. Nc3
{[%clk 0:02:51.4]} 8... a6 {[%clk 0:02:51.4]} 9. Ne2 {[%clk 0:02:49.1]} 9... Nc6
{[%clk 0:02:49.5]} 10. c3 {[%clk 0:02:44.2]} 10... Re8 {[%clk 0:02:49.5]} 11.
Bf4 {[%clk 0:02:33.5]} 11... Be6 {[%clk 0:02:44.8]} 12. Qd2 {[%clk 0:02:30.5]}
12... Ne7 {[%clk 0:02:33.4]} 13. Rae1 {[%clk 0:02:22.3]} 13... Ng6 {[%clk
0:02:29.3]} 14. Bxg6 {[%clk 0:02:14.6]} 14... fxg6 {[%clk 0:02:30.2]} 15. Bxd6
{[%clk 0:02:14.6]} 15... Qxd6 {[%clk 0:02:24]} 16. Ne5 {[%clk 0:02:05.2]} 16...
Ne4 {[%clk 0:02:20.5]} 17. Qe3 {[%clk 0:01:57.6]} 17... Bf5 {[%clk 0:02:09.8]}
18. f3 {[%clk 0:01:51.9]} 18... Nf6 {[%clk 0:02:07.3]} 19. Ng3 {[%clk
0:01:45.9]} 19... Kh7 {[%clk 0:01:59.4]} 20. Nxf5 {[%clk 0:01:43.6]} 20... gxf5
{[%clk 0:02:00.3]} 21. Qd3 {[%clk 0:01:44.3]} 21... g6 {[%clk 0:01:44.2]} 22. g4
{[%clk 0:01:44.3]} 22... Rg8 {[%clk 0:01:43.2]} 23. gxf5 {[%clk 0:01:38.8]}
23... gxf5+ {[%clk 0:01:44.1]} 24. Kh1 {[%clk 0:01:36]} 24... Qe6 {[%clk
0:01:39.6]} 25. Ng4 {[%clk 0:01:31.4]} 25... Qf7 {[%clk 0:01:31.7]} 26. Qxf5+
{[%clk 0:01:29.4]} 26... Kg7 {[%clk 0:01:14.7]} 27. Nxf6 {[%clk 0:01:19.6]}
27... Qxf6 {[%clk 0:01:14.9]} 28. Rg1+ {[%clk 0:01:20]} 28... Kf7 {[%clk
0:01:15.1]} 29. Qxd5+ {[%clk 0:01:20.3]} 1-0

[Event "Late-Titled-Tuesday-Blitz-October-17-2023"]
[Site "Chess.com"]
[Date "2023.10.17"]
[Round "6"]
[White "Bala-Afiada"]
[Black "VdovinDmitry"]
[Result "1-0"]
[WhiteElo "1915"]
[BlackElo "2095"]
[TimeControl "180+1"]
[EndTime "15:04:01 PDT"]
[Termination "Bala-Afiada won by resignation"]

1. d4 {[%clk 0:03:00.9]} 1... d5 {[%clk 0:02:43.6]} 2. c4 {[%clk 0:03:00.2]}
2... c6 {[%clk 0:02:43.1]} 3. Nf3 {[%clk 0:02:58.7]} 3... Nf6 {[%clk 0:02:40.8]}
4. g3 {[%clk 0:02:59]} 4... Bg4 {[%clk 0:02:37.1]} 5. Bg2 {[%clk 0:02:59.4]}
5... e6 {[%clk 0:02:08.3]} 6. O-O {[%clk 0:02:58.2]} 6... Be7 {[%clk 0:02:06.6]}
7. Nbd2 {[%clk 0:02:58.3]} 7... O-O {[%clk 0:02:05.3]} 8. Qc2 {[%clk 0:02:58.1]}
8... Nbd7 {[%clk 0:02:05.7]} 9. e4 {[%clk 0:02:54]} 9... dxe4 {[%clk 0:02:01.5]}
10. Nxe4 {[%clk 0:02:54.9]} 10... Bf5 {[%clk 0:02:01.4]} 11. Ne5 {[%clk
0:02:40.6]} 11... Nxe5 {[%clk 0:02:00]} 12. dxe5 {[%clk 0:02:40.7]} 12... Nxe4
{[%clk 0:01:54.6]} 13. Bxe4 {[%clk 0:02:40.6]} 13... Bxe4 {[%clk 0:01:55.1]} 14.
Qxe4 {[%clk 0:02:41.4]} 14... Qb6 {[%clk 0:01:53.9]} 15. Be3 {[%clk 0:02:25]}
15... Bc5 {[%clk 0:01:52.7]} 16. Bxc5 {[%clk 0:02:22.7]} 16... Qxc5 {[%clk
0:01:53.6]} 17. Rad1 {[%clk 0:02:19.8]} 17... Rfd8 {[%clk 0:01:49.8]} 18. b3
{[%clk 0:02:14.2]} 18... g6 {[%clk 0:01:49.4]} 19. Kg2 {[%clk 0:02:04.1]} 19...
a5 {[%clk 0:01:49.2]} 20. Qe2 {[%clk 0:01:56.9]} 20... a4 {[%clk 0:01:48.3]} 21.
f4 {[%clk 0:01:46.9]} 21... Kg7 {[%clk 0:01:42.7]} 22. Rxd8 {[%clk 0:01:38.2]}
22... Rxd8 {[%clk 0:01:43.6]} 23. Rd1 {[%clk 0:01:38.4]} 23... Rd4 {[%clk
0:01:41.6]} 24. Qe3 {[%clk 0:01:17.9]} 24... Rd5 {[%clk 0:01:41.5]} 25. Qxc5
{[%clk 0:01:13.5]} 25... Rxc5 {[%clk 0:01:40.6]} 26. Rd4 {[%clk 0:01:01.3]}
26... a3 {[%clk 0:01:38.6]} 27. b4 {[%clk 0:00:58.5]} 1-0

[Event "Late-Titled-Tuesday-Blitz-October-17-2023"]
[Site "Chess.com"]
[Date "2023.10.17"]
[Round "6"]
[White "arminmusovic"]
[Black "nochewycandy"]
[Result "0-1"]
[WhiteElo "2477"]
[BlackElo "2722"]
[TimeControl "180+1"]
[EndTime "15:04:02 PDT"]
[Termination "nochewycandy won by resignation"]

1. a3 {[%clk 0:02:57.5]} 1... g6 {[%clk 0:03:00]} 2. Nc3 {[%clk 0:02:56.5]} 2...
Bg7 {[%clk 0:03:00.3]} 3. e4 {[%clk 0:02:57.2]} 3... d6 {[%clk 0:02:59.7]} 4.
Bc4 {[%clk 0:02:57.7]} 4... e6 {[%clk 0:02:57.1]} 5. d4 {[%clk 0:02:56.8]} 5...
a6 {[%clk 0:02:57.6]} 6. Ba2 {[%clk 0:02:56.3]} 6... Ne7 {[%clk 0:02:56.4]} 7.
h4 {[%clk 0:02:56.4]} 7... h6 {[%clk 0:02:56.1]} 8. Nge2 {[%clk 0:02:56.1]} 8...
Nd7 {[%clk 0:02:55.8]} 9. Be3 {[%clk 0:02:56.2]} 9... b6 {[%clk 0:02:55.9]} 10.
Qd2 {[%clk 0:02:56.2]} 10... Bb7 {[%clk 0:02:55.7]} 11. f3 {[%clk 0:02:56.2]}
11... c5 {[%clk 0:02:52.5]} 12. O-O-O {[%clk 0:02:55.3]} 12... Qc7 {[%clk
0:02:46.9]} 13. dxc5 {[%clk 0:02:53.6]} 13... dxc5 {[%clk 0:02:47.8]} 14. Qd6
{[%clk 0:02:53.6]} 14... Qxd6 {[%clk 0:02:46.8]} 15. Rxd6 {[%clk 0:02:54.5]}
15... Be5 {[%clk 0:02:38.7]} 16. Rd2 {[%clk 0:02:47]} 16... b5 {[%clk
0:02:27.5]} 17. Rhd1 {[%clk 0:02:39.4]} 17... Bc6 {[%clk 0:02:28.1]} 18. Kb1
{[%clk 0:02:31]} 18... b4 {[%clk 0:02:21.3]} 19. axb4 {[%clk 0:02:22.2]} 19...
cxb4 {[%clk 0:02:22.2]} 20. Nd5 {[%clk 0:02:21.2]} 20... exd5 {[%clk 0:02:22.7]}
21. exd5 {[%clk 0:02:21.4]} 21... Bb7 {[%clk 0:02:15.3]} 22. f4 {[%clk
0:02:09.3]} 22... Bd6 {[%clk 0:02:13.3]} 23. g4 {[%clk 0:02:08.4]} 23... h5
{[%clk 0:02:12.6]} 24. Bd4 {[%clk 0:01:57.3]} 24... Rg8 {[%clk 0:02:01.9]} 25.
g5 {[%clk 0:01:46.4]} 25... Nf5 {[%clk 0:02:01.4]} 26. Bf2 {[%clk 0:01:46]}
26... O-O-O {[%clk 0:01:57.3]} 27. c3 {[%clk 0:01:16]} 27... bxc3 {[%clk
0:01:50.3]} 28. Rc2 {[%clk 0:01:15.3]} 28... Rge8 {[%clk 0:01:47.7]} 29. Nxc3
{[%clk 0:01:14.1]} 29... Kb8 {[%clk 0:01:47.4]} 30. Ne2 {[%clk 0:01:08.9]} 30...
Rc8 {[%clk 0:01:44.7]} 31. Rcd2 {[%clk 0:01:09]} 31... Nc5 {[%clk 0:01:43.9]}
32. Nd4 {[%clk 0:01:08.1]} 32... Ne4 {[%clk 0:01:41.7]} 33. Re2 {[%clk
0:00:59.8]} 33... Nxd4 {[%clk 0:01:40.4]} 34. Bxd4 {[%clk 0:00:55.6]} 34... Nc3+
{[%clk 0:01:40.2]} 35. bxc3 {[%clk 0:00:56.1]} 35... Rxe2 {[%clk 0:01:41.1]} 36.
Bc4 {[%clk 0:00:55.8]} 36... Rxc4 {[%clk 0:01:40.5]} 37. Re1 {[%clk 0:00:56.7]}
37... Rxe1+ {[%clk 0:01:40.8]} 0-1

[Event "Late-Titled-Tuesday-Blitz-October-17-2023"]
[Site "Chess.com"]
[Date "2023.10.17"]
[Round "6"]
[White "OLDTERMINATOR"]
[Black "Sacbutt"]
[Result "0-1"]
[WhiteElo "1647"]
[BlackElo "2221"]
[TimeControl "180+1"]
[EndTime "15:04:07 PDT"]
[Termination "Sacbutt won on time"]

1. e4 {[%clk 0:03:00.9]} 1... c5 {[%clk 0:02:58.9]} 2. Nf3 {[%clk 0:02:59.8]}
2... d6 {[%clk 0:02:59]} 3. d4 {[%clk 0:02:58.3]} 3... cxd4 {[%clk 0:02:59.1]}
4. Nxd4 {[%clk 0:02:58.2]} 4... Nf6 {[%clk 0:02:59.7]} 5. Nc3 {[%clk 0:02:57.8]}
5... a6 {[%clk 0:03:00.3]} 6. Bg5 {[%clk 0:02:56.9]} 6... e6 {[%clk 0:03:00.3]}
7. f4 {[%clk 0:02:56.2]} 7... Be7 {[%clk 0:03:00.7]} 8. Bd3 {[%clk 0:02:50.7]}
8... Nbd7 {[%clk 0:02:59.3]} 9. Qe2 {[%clk 0:02:45.9]} 9... Qc7 {[%clk 0:02:56]}
10. O-O-O {[%clk 0:02:43.5]} 10... h6 {[%clk 0:02:53.9]} 11. Bh4 {[%clk
0:02:38.5]} 11... b5 {[%clk 0:02:47.1]} 12. a3 {[%clk 0:02:09.2]} 12... Bb7
{[%clk 0:02:43.6]} 13. Rhe1 {[%clk 0:02:06.8]} 13... Rc8 {[%clk 0:02:33.7]} 14.
e5 {[%clk 0:02:03.7]} 14... dxe5 {[%clk 0:02:18.1]} 15. fxe5 {[%clk 0:02:02.2]}
15... Ng8 {[%clk 0:02:15.5]} 16. Nxe6 {[%clk 0:01:40.7]} 16... fxe6 {[%clk
0:02:00.7]} 17. Bg6+ {[%clk 0:00:56.8]} 17... Kd8 {[%clk 0:02:00.2]} 18. Bg3
{[%clk 0:00:08.4]} 18... Bg5+ {[%clk 0:01:52.4]} 19. Kb1 {[%clk 0:00:06.4]}
19... Ne7 {[%clk 0:01:52.9]} 0-1

[Event "Late-Titled-Tuesday-Blitz-October-17-2023"]
[Site "Chess.com"]
[Date "2023.10.17"]
[Round "6"]
[White "gunslinger222"]
[Black "esskeettit"]
[Result "0-1"]
[WhiteElo "2346"]
[BlackElo "2500"]
[TimeControl "180+1"]
[EndTime "15:04:10 PDT"]
[Termination "esskeettit won by resignation"]

1. d4 {[%clk 0:03:00.9]} 1... d5 {[%clk 0:02:58.5]} 2. Nf3 {[%clk 0:02:59.6]}
2... Nf6 {[%clk 0:02:57.4]} 3. Bg5 {[%clk 0:03:00.2]} 3... e6 {[%clk 0:02:56.6]}
4. e3 {[%clk 0:02:59.5]} 4... h6 {[%clk 0:02:56.4]} 5. Bxf6 {[%clk 0:02:58.9]}
5... Qxf6 {[%clk 0:02:55.5]} 6. Bd3 {[%clk 0:02:56.6]} 6... Qd8 {[%clk
0:02:54.2]} 7. O-O {[%clk 0:02:55.6]} 7... c5 {[%clk 0:02:54.3]} 8. c3 {[%clk
0:02:52.5]} 8... Nc6 {[%clk 0:02:53.1]} 9. Nbd2 {[%clk 0:02:51.8]} 9... Be7
{[%clk 0:02:49.7]} 10. Qe2 {[%clk 0:02:48.2]} 10... Qc7 {[%clk 0:02:38.7]} 11.
e4 {[%clk 0:02:29.3]} 11... dxe4 {[%clk 0:02:04.9]} 12. Nxe4 {[%clk 0:02:29.4]}
12... b6 {[%clk 0:02:04.3]} 13. Bb5 {[%clk 0:02:22]} 13... Bb7 {[%clk
0:02:02.9]} 14. dxc5 {[%clk 0:02:18.5]} 14... bxc5 {[%clk 0:02:00.9]} 15. Qc4
{[%clk 0:02:11.3]} 15... O-O {[%clk 0:01:45.2]} 16. Nxc5 {[%clk 0:01:46.2]}
16... Na5 {[%clk 0:01:41.3]} 17. Nxe6 {[%clk 0:01:35.3]} 17... Qxc4 {[%clk
0:01:40.7]} 18. Bxc4 {[%clk 0:01:35.4]} 18... Nxc4 {[%clk 0:01:40.2]} 19. Nxf8
{[%clk 0:01:35.2]} 19... Bxf8 {[%clk 0:01:29.7]} 20. b3 {[%clk 0:01:34.8]} 20...
Bxf3 {[%clk 0:01:27]} 21. bxc4 {[%clk 0:01:34.8]} 21... Be2 {[%clk 0:01:26.1]}
22. Rfe1 {[%clk 0:01:31.9]} 22... Bxc4 {[%clk 0:01:26.2]} 23. Re4 {[%clk
0:01:31.4]} 23... Be6 {[%clk 0:01:19.2]} 24. a4 {[%clk 0:01:29.3]} 24... Rc8
{[%clk 0:01:13.5]} 25. Rc1 {[%clk 0:01:26.4]} 25... Ba3 {[%clk 0:01:06.6]} 26.
Rb1 {[%clk 0:01:20.1]} 26... Bf5 {[%clk 0:01:05.4]} 0-1

[Event "Late-Titled-Tuesday-Blitz-October-17-2023"]
[Site "Chess.com"]
[Date "2023.10.17"]
[Round "6"]
[White "cthulhuuu"]
[Black "campochess"]
[Result "1-0"]
[WhiteElo "2412"]
[BlackElo "2192"]
[TimeControl "180+1"]
[EndTime "15:04:15 PDT"]
[Termination "cthulhuuu won by resignation"]

1. e4 {[%clk 0:03:00]} 1... c5 {[%clk 0:02:58.5]} 2. Nf3 {[%clk 0:03:00.5]} 2...
Nc6 {[%clk 0:02:58.4]} 3. g3 {[%clk 0:03:00.5]} 3... g6 {[%clk 0:02:57.3]} 4.
Bg2 {[%clk 0:03:01.2]} 4... Bg7 {[%clk 0:02:57.4]} 5. O-O {[%clk 0:03:01.5]}
5... d6 {[%clk 0:02:57.5]} 6. d3 {[%clk 0:03:01]} 6... Nf6 {[%clk 0:02:57]} 7.
Re1 {[%clk 0:03:00.8]} 7... Nd7 {[%clk 0:02:56.8]} 8. c3 {[%clk 0:03:00.8]} 8...
O-O {[%clk 0:02:55.8]} 9. d4 {[%clk 0:03:00.5]} 9... cxd4 {[%clk 0:02:54.7]} 10.
cxd4 {[%clk 0:03:01.4]} 10... e5 {[%clk 0:02:43.1]} 11. d5 {[%clk 0:03:01.8]}
11... Ne7 {[%clk 0:02:42]} 12. Nc3 {[%clk 0:03:01.6]} 12... a6 {[%clk
0:02:40.5]} 13. a4 {[%clk 0:03:00.4]} 13... Nf6 {[%clk 0:02:36.1]} 14. h3 {[%clk
0:02:58.2]} 14... Ne8 {[%clk 0:02:35.8]} 15. b4 {[%clk 0:02:51.7]} 15... Bd7
{[%clk 0:02:35.4]} 16. Ba3 {[%clk 0:02:28.7]} 16... Rc8 {[%clk 0:02:34.4]} 17.
Qd2 {[%clk 0:02:25]} 17... f5 {[%clk 0:02:34.1]} 18. Ng5 {[%clk 0:02:24.1]}
18... Nf6 {[%clk 0:02:28.6]} 19. b5 {[%clk 0:02:20.4]} 19... Rc4 {[%clk
0:02:19.9]} 20. Bxd6 {[%clk 0:02:12.9]} 20... fxe4 {[%clk 0:02:13.8]} 21. Bxe5
{[%clk 0:02:05]} 21... Rxc3 {[%clk 0:02:06.8]} 22. Bxc3 {[%clk 0:01:44.2]} 22...
Nexd5 {[%clk 0:02:06.8]} 23. Bb2 {[%clk 0:01:27]} 23... Bf5 {[%clk 0:01:56.8]}
24. g4 {[%clk 0:01:24.2]} 24... Bc8 {[%clk 0:01:46.8]} 25. Rad1 {[%clk
0:01:21.2]} 25... Qe7 {[%clk 0:01:36]} 26. Nxe4 {[%clk 0:01:17.3]} 26... Qb4
{[%clk 0:01:18.3]} 27. Nxf6+ {[%clk 0:01:10.8]} 27... Bxf6 {[%clk 0:01:16.8]}
28. Bxd5+ {[%clk 0:01:09.3]} 1-0

[Event "Late-Titled-Tuesday-Blitz-October-17-2023"]
[Site "Chess.com"]
[Date "2023.10.17"]
[Round "6"]
[White "Fdpo95"]
[Black "gahryman"]
[Result "0-1"]
[WhiteElo "2495"]
[BlackElo "2673"]
[TimeControl "180+1"]
[EndTime "15:04:23 PDT"]
[Termination "gahryman won by resignation"]

1. e4 {[%clk 0:03:00.9]} 1... c5 {[%clk 0:02:57]} 2. Nf3 {[%clk 0:03:01]} 2...
Nc6 {[%clk 0:02:57]} 3. d4 {[%clk 0:03:01.5]} 3... cxd4 {[%clk 0:02:56.9]} 4.
Nxd4 {[%clk 0:03:02.4]} 4... e5 {[%clk 0:02:57.5]} 5. Nb5 {[%clk 0:03:01.6]}
5... d6 {[%clk 0:02:58]} 6. c4 {[%clk 0:03:02]} 6... Be6 {[%clk 0:02:46.5]} 7.
Be2 {[%clk 0:03:00.8]} 7... Nf6 {[%clk 0:02:45.9]} 8. N1c3 {[%clk 0:02:58]} 8...
a6 {[%clk 0:02:45.7]} 9. Na3 {[%clk 0:02:58.3]} 9... g6 {[%clk 0:02:46.3]} 10.
O-O {[%clk 0:02:58.5]} 10... Bg7 {[%clk 0:02:46.2]} 11. Be3 {[%clk 0:02:56.6]}
11... O-O {[%clk 0:02:45.8]} 12. Qd2 {[%clk 0:02:47.9]} 12... Nd4 {[%clk
0:02:40.6]} 13. Bxd4 {[%clk 0:02:37.4]} 13... exd4 {[%clk 0:02:40.3]} 14. Qxd4
{[%clk 0:02:38.3]} 14... Nd5 {[%clk 0:02:40.6]} 15. Qd2 {[%clk 0:02:27.3]} 15...
Nxc3 {[%clk 0:02:40.3]} 16. bxc3 {[%clk 0:02:27.4]} 16... Qa5 {[%clk 0:02:37.9]}
17. Nb1 {[%clk 0:02:19.5]} 17... Rac8 {[%clk 0:02:31.1]} 18. Qxd6 {[%clk
0:02:18.5]} 18... Rfd8 {[%clk 0:02:29.6]} 19. Qg3 {[%clk 0:02:16.6]} 19... Bxc4
{[%clk 0:02:21.1]} 20. Bxc4 {[%clk 0:02:12.9]} 20... Rxc4 {[%clk 0:02:22]} 21.
Re1 {[%clk 0:02:10.6]} 21... h5 {[%clk 0:02:12.7]} 22. Qf3 {[%clk 0:02:02.9]}
22... Be5 {[%clk 0:02:06.7]} 23. g3 {[%clk 0:02:02.5]} 23... b5 {[%clk
0:01:57.8]} 24. a3 {[%clk 0:01:45.4]} 24... Qc7 {[%clk 0:01:56.9]} 25. Ra2
{[%clk 0:01:41.5]} 25... Bxc3 {[%clk 0:01:44.4]} 26. Nxc3 {[%clk 0:01:41.3]}
26... Rxc3 {[%clk 0:01:45.3]} 27. Qf6 {[%clk 0:01:32.8]} 27... Rc6 {[%clk
0:01:32.1]} 28. Qg5 {[%clk 0:01:28.7]} 28... Rcd6 {[%clk 0:01:16.6]} 29. Rae2
{[%clk 0:01:26]} 29... Rd1 {[%clk 0:01:15.9]} 30. e5 {[%clk 0:01:22.8]} 30...
Qc3 {[%clk 0:01:11.4]} 31. Kf1 {[%clk 0:01:14.8]} 31... Qf3 {[%clk 0:01:11]} 0-1

[Event "Late-Titled-Tuesday-Blitz-October-17-2023"]
[Site "Chess.com"]
[Date "2023.10.17"]
[Round "6"]
[White "Lion_DL"]
[Black "mfwagnerpeixoto"]
[Result "1-0"]
[WhiteElo "2455"]
[BlackElo "2328"]
[TimeControl "180+1"]
[EndTime "15:04:31 PDT"]
[Termination "Lion_DL won by resignation"]

1. f4 {[%clk 0:02:58.6]} 1... e5 {[%clk 0:02:55.8]} 2. e4 {[%clk 0:02:56.1]}
2... exf4 {[%clk 0:02:49.8]} 3. Bc4 {[%clk 0:02:55]} 3... Nf6 {[%clk 0:02:42.7]}
4. Nc3 {[%clk 0:02:53.8]} 4... Bb4 {[%clk 0:02:28.8]} 5. e5 {[%clk 0:02:09.7]}
5... d5 {[%clk 0:01:55]} 6. Bb5+ {[%clk 0:02:08.3]} 6... c6 {[%clk 0:01:54.8]}
7. exf6 {[%clk 0:02:07.7]} 7... cxb5 {[%clk 0:01:39.8]} 8. fxg7 {[%clk
0:02:08.2]} 8... Rg8 {[%clk 0:01:39.7]} 9. Nf3 {[%clk 0:02:08]} 9... Rxg7 {[%clk
0:01:30.1]} 10. O-O {[%clk 0:02:06.4]} 10... Be6 {[%clk 0:01:10.1]} 11. d4
{[%clk 0:02:03.8]} 11... Qf6 {[%clk 0:01:02.7]} 12. Nxb5 {[%clk 0:02:00.1]}
12... Na6 {[%clk 0:00:57.5]} 13. c3 {[%clk 0:01:54.1]} 13... Be7 {[%clk
0:00:56.6]} 14. Kh1 {[%clk 0:01:34.3]} 14... Kf8 {[%clk 0:00:52.8]} 15. Ne5
{[%clk 0:01:32.1]} 15... Qg5 {[%clk 0:00:39.7]} 16. Qf3 {[%clk 0:01:28.7]} 16...
Qf5 {[%clk 0:00:21.9]} 17. Bxf4 {[%clk 0:01:15.8]} 17... Qe4 {[%clk 0:00:20.5]}
18. Qxe4 {[%clk 0:01:12.3]} 18... dxe4 {[%clk 0:00:21.4]} 19. Bh6 {[%clk
0:01:11.8]} 1-0

[Event "Late-Titled-Tuesday-Blitz-October-17-2023"]
[Site "Chess.com"]
[Date "2023.10.17"]
[Round "6"]
[White "Jarming"]
[Black "GlavkonVVS"]
[Result "1-0"]
[WhiteElo "2792"]
[BlackElo "2539"]
[TimeControl "180+1"]
[EndTime "15:04:34 PDT"]
[Termination "Jarming won by resignation"]

1. d4 {[%clk 0:03:00.9]} 1... Nf6 {[%clk 0:02:59.1]} 2. c4 {[%clk 0:03:01.4]}
2... e6 {[%clk 0:02:58.4]} 3. Nf3 {[%clk 0:03:01.7]} 3... c5 {[%clk 0:02:58.6]}
4. g3 {[%clk 0:03:02.3]} 4... cxd4 {[%clk 0:02:58.1]} 5. Nxd4 {[%clk 0:03:03.2]}
5... Nc6 {[%clk 0:02:58.6]} 6. Bg2 {[%clk 0:03:03.2]} 6... Bc5 {[%clk
0:02:58.6]} 7. Nb3 {[%clk 0:03:01.8]} 7... Bb4+ {[%clk 0:02:54.8]} 8. Bd2 {[%clk
0:03:01.5]} 8... Be7 {[%clk 0:02:54.8]} 9. Nc3 {[%clk 0:03:00.8]} 9... O-O
{[%clk 0:02:54.5]} 10. O-O {[%clk 0:02:59.4]} 10... b6 {[%clk 0:02:53.3]} 11.
Bf4 {[%clk 0:02:58.2]} 11... Ba6 {[%clk 0:02:52.2]} 12. Nb5 {[%clk 0:02:57.5]}
12... d5 {[%clk 0:02:47]} 13. cxd5 {[%clk 0:02:49]} 13... Nxd5 {[%clk
0:02:46.5]} 14. Bxd5 {[%clk 0:02:46.7]} 14... Bxb5 {[%clk 0:02:45.5]} 15. Bf3
{[%clk 0:02:41.4]} 15... Qxd1 {[%clk 0:02:41.5]} 16. Rfxd1 {[%clk 0:02:42.3]}
16... Rad8 {[%clk 0:02:41.5]} 17. Rxd8 {[%clk 0:02:14.5]} 17... Rxd8 {[%clk
0:02:40.3]} 18. Rb1 {[%clk 0:02:03]} 18... g5 {[%clk 0:02:37.3]} 19. Be3 {[%clk
0:02:01.8]} 19... Ne5 {[%clk 0:02:35.4]} 20. Bh5 {[%clk 0:01:56.6]} 20... Bc4
{[%clk 0:02:23.8]} 21. Rc1 {[%clk 0:01:53.6]} 21... Bf6 {[%clk 0:02:06.4]} 22.
f4 {[%clk 0:01:47.2]} 22... gxf4 {[%clk 0:02:03.9]} 23. gxf4 {[%clk 0:01:48.1]}
23... Bxb3 {[%clk 0:01:51.7]} 24. fxe5 {[%clk 0:01:47.7]} 24... Bxe5 {[%clk
0:01:51.2]} 25. axb3 {[%clk 0:01:47.3]} 25... Bxb2 {[%clk 0:01:44.8]} 26. Rc7
{[%clk 0:01:46]} 26... Bd4 {[%clk 0:01:39.4]} 27. Kf2 {[%clk 0:01:44.9]} 27...
Bxe3+ {[%clk 0:01:29.1]} 28. Kxe3 {[%clk 0:01:45.8]} 28... Rd5 {[%clk
0:01:25.6]} 29. Bxf7+ {[%clk 0:01:43.1]} 29... Kf8 {[%clk 0:01:25.9]} 30. Ke4
{[%clk 0:01:34.5]} 30... Rd2 {[%clk 0:01:19.5]} 31. e3 {[%clk 0:01:31.9]} 31...
Rxh2 {[%clk 0:01:11.9]} 32. Rxa7 {[%clk 0:01:26.4]} 32... Rh4+ {[%clk
0:00:57.6]} 33. Ke5 {[%clk 0:01:25.3]} 33... Rh3 {[%clk 0:00:53.5]} 34. e4
{[%clk 0:01:21.5]} 34... Rxb3 {[%clk 0:00:50.7]} 35. Bxe6 {[%clk 0:01:21.6]}
35... Rf3 {[%clk 0:00:49.4]} 36. Rxh7 {[%clk 0:01:17.5]} 1-0

[Event "Late-Titled-Tuesday-Blitz-October-17-2023"]
[Site "Chess.com"]
[Date "2023.10.17"]
[Round "6"]
[White "Chesstrainer1"]
[Black "djano"]
[Result "0-1"]
[WhiteElo "2495"]
[BlackElo "2679"]
[TimeControl "180+1"]
[EndTime "15:04:42 PDT"]
[Termination "djano won on time"]

1. d4 {[%clk 0:02:58.1]} 1... d5 {[%clk 0:02:59.9]} 2. c4 {[%clk 0:02:58.1]}
2... e6 {[%clk 0:03:00.2]} 3. Nf3 {[%clk 0:02:55.6]} 3... c5 {[%clk 0:03:00.3]}
4. cxd5 {[%clk 0:02:54.6]} 4... exd5 {[%clk 0:03:01.2]} 5. Nc3 {[%clk
0:02:53.8]} 5... Nc6 {[%clk 0:03:00.3]} 6. g3 {[%clk 0:02:52.7]} 6... Nf6 {[%clk
0:02:59]} 7. Bg2 {[%clk 0:02:52.7]} 7... c4 {[%clk 0:02:58.1]} 8. O-O {[%clk
0:02:51.4]} 8... Be7 {[%clk 0:02:58.5]} 9. b3 {[%clk 0:02:43.5]} 9... cxb3
{[%clk 0:02:59.4]} 10. Qxb3 {[%clk 0:02:42.6]} 10... O-O {[%clk 0:02:59.2]} 11.
Bg5 {[%clk 0:02:30.2]} 11... Na5 {[%clk 0:02:57.5]} 12. Qb5 {[%clk 0:02:30.3]}
12... a6 {[%clk 0:02:41.3]} 13. Qd3 {[%clk 0:02:30.2]} 13... h6 {[%clk 0:02:30]}
14. Bxf6 {[%clk 0:02:12.9]} 14... Bxf6 {[%clk 0:02:29.9]} 15. Ne5 {[%clk
0:02:13.1]} 15... Be6 {[%clk 0:02:27.2]} 16. f4 {[%clk 0:01:47.9]} 16... Nc4
{[%clk 0:01:59.7]} 17. f5 {[%clk 0:01:41.8]} 17... Bxe5 {[%clk 0:01:37.6]} 18.
fxe6 {[%clk 0:01:30]} 18... Qb6 {[%clk 0:01:33.9]} 19. exf7+ {[%clk 0:01:02.8]}
19... Kh8 {[%clk 0:01:33]} 20. e3 {[%clk 0:00:11.9]} 20... Nxe3 {[%clk
0:01:32.7]} 21. Rab1 {[%clk 0:00:04.4]} 21... Qxd4 {[%clk 0:01:32.9]} 22. Qxd4
{[%clk 0:00:03.1]} 22... Bxd4 {[%clk 0:01:33.8]} 23. Rfe1 {[%clk 0:00:01.9]}
23... Nc2+ {[%clk 0:01:30]} 24. Kh1 {[%clk 0:00:01.2]} 24... Nxe1 {[%clk
0:01:30.6]} 0-1